[Event "Turkish Youth Championship 2024"]
[Site "Samsun"]
[Date "2024.05.21"]
[Round "6"]
[White "Turgut, Hakan"]
[Black "Gokturk, Murat Kutay"]
[Result "1-0"]
[ECO "B33"]
[WhiteElo "1954"]
[BlackElo "1862"]
[Annotator "RC"]
[PlyCount "159"]
[EventDate "2024.05.18"]
[EventType "swiss"]
[EventCountry "TUR"]
[SourceTitle "playchess.com"]
[Source "ChessBase"]
[SourceQuality "1"]
[TimeControl "5400+30"]

1. e4 {[%emt 0:01:00]} c5 {[%emt 0:01:00]} 2. Nf3 {[%emt 0:00:30]} Nc6 {[%emt 0:00:00]} 3. d4 {[%emt 0:00:00]} cxd4 {[%emt 0:00:00]} 4. Nxd4 {[%emt 0:00:00]} Qb6 {[%emt 0:00:00]} 5. Nb3 {[%emt 0:00:30]} Nf6 {[%emt 0:00:00]} 6. Bd3 {[%emt 0:00:30]} e6 {[%emt 0:00:30]} 7. Be3 {[%emt 0:00:30]} Qc7 {[%emt 0:00:30]} 8. f4 {[%emt 0:01:30]} d6 {[%emt 0:00:30]} 9. Nc3 {[%emt 0:00:30]} Be7 {[%emt 0:00:00]} 10. Qf3 {[%emt 0:00:30]} a6 {[%emt 0:03:00]} 11. O-O-O {[%emt 0:01:30]} b5 {[%emt 0:03:30]} 12. g4 {[%emt 0:02:30]} Bb7 {[%emt 0:06:30]} 13. g5 {[%emt 0:00:30]} Nd7 {[%emt 0:00:00]} 14. Qh3 {[%emt 0:01:30]} Nb4 {[%emt 0:07:00]} 15. Kb1 {[%emt 0:03:30]} Nxd3 {[%emt 0:05:30]} 16. cxd3 {[%emt 0:00:30]} b4 {[%emt 0:00:30]} 17. Ne2 {[%emt 0:00:30]} O-O {[%emt 0:05:30]} 18. Rhg1 {[%emt 0:04:30]} g6 {[%emt 0:01:30]} 19. f5 {[%emt 0:04:30]} exf5 {[%emt 0:02:30]} 20. exf5 {[%emt 0:00:00]} Rfe8 {[%emt 0:11:30]} 21. Rc1 {[%emt 0:07:00]} Qd8 {[%emt 0:02:30]} 22. Rc4 {[%emt 0:08:30]} Bc8 {[%emt 0:02:30]} 23. fxg6 {[%emt 0:02:30]} fxg6 {[%emt 0:04:30]} 24. Qe6+ {[%emt 0:01:30]} Kg7 {[%emt 0:04:30]} 25. Qd5 {[%emt 0:02:30]} Ne5 {[%emt 0:01:30]} 26. Ng3 {[%emt 0:05:30]} Rb8 {[%emt 0:04:30]} 27. Nd4 {[%emt 0:07:30]} Bf8 {[%emt 0:04:30]} 28. Rc2 {[%emt 0:06:30]} a5 {[%emt 0:05:30]} 29. Rgc1 {[%emt 0:05:30]} Kh8 {[%emt 0:04:30]} 30. Rc7 {[%emt 0:13:30]} Re7 {[%emt 0:08:23]} 31. Rxe7 {[%emt 0:07:45]} Qxe7 {[%emt 0:00:01]} 32. Nc2 {[%emt 0:05:00]} b3 {[%emt 0:04:04]} 33. axb3 {[%emt 0:00:14]} Be6 {[%emt 0:00:22]} 34. Qxa5 {[%emt 0:00:33]} Nxd3 {[%emt 0:01:36]} 35. Rd1 {[%emt 0:01:25]} Rxb3 {[%emt 0:00:18]} 36. Bd4+ {[%emt 0:00:25]} Bg7 {[%emt 0:00:32]} 37. Na1 {[%emt 0:00:53]} Nxb2 {[%emt 0:01:37]} 38. Nxb3 {[%emt 0:04:15]} Nxd1 {[%emt 0:00:10]} 39. Qb4 {[%emt 0:02:01]} Qc7 {[%emt 0:05:18]} 40. Bxg7+ {[%emt 0:00:39]} Qxg7 {[%emt 0:00:07]} 41. Nd4 {[%emt 0:00:08]} Qe7 {[%emt 0:03:21]} 42. Nxe6 {[%emt 0:00:28]} Qxe6 {[%emt 0:00:11]} 43. Qd4+ {[%emt 0:00:29]} Qe5 {[%emt 0:00:04]} 44. Qxd1 {[%emt 0:00:00]} Qb5+ {[%emt 0:00:14]} 45. Ka2 {[%emt 0:00:49]} Qa5+ {[%emt 0:00:04]} 46. Kb2 {[%emt 0:00:00]} Qb4+ {[%emt 0:00:40]} 47. Qb3 {[%emt 0:00:33]} Qd2+ {[%emt 0:00:01]} 48. Qc2 {[%emt 0:00:12]} Qb4+ {[%emt 0:00:04]} 49. Ka2 {[%emt 0:00:13]} Qa5+ {[%emt 0:00:09]} 50. Kb1 {[%emt 0:00:12]} Qxg5 {[%emt 0:00:35]} 51. Qc8+ {[%emt 0:01:20]} Kg7 {[%emt 0:00:00]} 52. Qd7+ {[%emt 0:00:10]} Kg8 {[%emt 0:01:14]} 53. Qe6+ {[%emt 0:00:19]} Kg7 {[%emt 0:00:37]} 54. Qxd6 {[%emt 0:00:53]} Qb5+ {[%emt 0:00:01]} 55. Kc2 {[%emt 0:00:37]} Qc4+ {[%emt 0:00:09]} 56. Kd2 {[%emt 0:00:04]} Qa2+ {[%emt 0:00:10]} 57. Ke3 {[%emt 0:00:00]} Qb3+ {[%emt 0:00:54]} 58. Qd3 {[%emt 0:00:53]} Qe6+ {[%emt 0:00:01]} 59. Kf2 {[%emt 0:00:34]} Qf6+ {[%emt 0:00:41]} 60. Kg2 {[%emt 0:00:21]} Qb2+ {[%emt 0:00:23]} 61. Qe2 {[%emt 0:00:05]} Qb7+ {[%emt 0:00:33]} 62. Ne4 {[%emt 0:00:15]} h5 {[%emt 0:02:00]} 63. Qc2 {[%emt 0:00:58]} Kh7 {[%emt 0:01:44]} 64. Qd3 {[%emt 0:00:22]} Qc6 {[%emt 0:00:57]} 65. Qd7+ {[%emt 0:00:11]} Qxd7 {[%emt 0:00:47]} 66. Nf6+ {[%emt 0:00:01]} Kh6 {[%emt 0:00:25]} 67. Nxd7 {[%emt 0:00:30]} g5 {[%emt 0:00:00]} 68. Kf3 {[%emt 0:00:00]} Kg7 {[%emt 0:00:52]} 69. Ke4 {[%emt 0:00:20]} Kg6 {[%emt 0:00:00]} 70. h3 {[%emt 0:01:21]} Kh6 {[%emt 0:00:20]} 71. Kf5 {[%emt 0:00:25]} g4 {[%emt 0:00:29]} 72. h4 {[%emt 0:00:36]} Kg7 {[%emt 0:00:02]} 73. Ne5 {[%emt 0:00:00]} Kh6 {[%emt 0:00:17]} 74. Kf6 {[%emt 0:00:01]} Kh7 {[%emt 0:00:02]} 75. Kg5 {[%emt 0:00:09]} Kg7 {[%emt 0:00:23]} 76. Kxh5 {[%emt 0:01:40]} g3 {[%emt 0:00:09]} 77. Nf3 {[%emt 0:00:02]} g2 {[%emt 0:00:00]} 78. Kg4 {[%emt 0:00:15]} Kg6 {[%emt 0:00:12]} 79. Kg3 {[%emt 0:00:00]} Kh5 {[%emt 0:00:36]} 80. Ng1 {[%emt 0:00:00]} 1-0

[Event "Turkish Youth Championship 2024"]
[Site "Samsun"]
[Date "2024.05.21"]
[Round "6"]
[White "Ozgun, Yigit Deniz"]
[Black "Ozmen, Sevket Mert"]
[Result "1-0"]
[ECO "D02"]
[WhiteElo "1917"]
[BlackElo "1749"]
[Annotator "NA RC"]
[PlyCount "50"]
[EventDate "2024.05.18"]
[EventType "swiss"]
[EventCountry "TUR"]
[SourceTitle "playchess.com"]
[Source "ChessBase"]
[SourceQuality "1"]
[TimeControl "5400+30"]

1. d4 {[%emt 0:01:00]} d5 {[%emt 0:01:00]} 2. Nf3 {[%emt 0:00:30]} Nf6 {[%emt 0:00:30]} 3. Bf4 {[%emt 0:00:30]} c5 {[%emt 0:00:30]} 4. e3 {[%emt 0:00:30]} Nc6 {[%emt 0:00:30]} 5. Nbd2 {[%emt 0:00:00]} Bf5 {[%emt 0:00:30]} 6. dxc5 {[%emt 0:00:00]} e6 {[%emt 0:01:30]} 7. b4 {[%emt 0:00:00]} Nxb4 {[%emt 0:07:30]} 8. Bb5+ {[%emt 0:00:00]} Nc6 {[%emt 0:02:30]} 9. Nd4 {[%emt 0:00:30]} Rc8 {[%emt 0:00:30]} 10. N2b3 {[%emt 0:00:00]} Be7 {[%emt 0:11:30]} 11. Nxc6 {[%emt 0:00:00]} bxc6 {[%emt 0:00:30]} 12. Ba6 {[%emt 0:00:30]} Ne4 {[%emt 0:03:30]} 13. Bxc8 {[%emt 0:01:30]} Qxc8 {[%emt 0:00:00]} 14. Be5 {[%emt 0:00:30]} O-O {[%emt 0:03:00]} 15. O-O {[%emt 0:00:30]} f6 {[%emt 0:05:30]} 16. Bb2 {[%emt 0:01:30]} Nxc5 {[%emt 0:00:30]} 17. Ba3 {[%emt 0:02:30]} Nxb3 {[%emt 0:00:30]} 18. Bxe7 {[%emt 0:01:30]} Nxa1 {[%emt 0:02:30]} 19. Bxf8 {[%emt 0:00:30]} Nxc2 {[%emt 0:10:30]} 20. Bc5 {[%emt 0:00:00]} Qa6 {[%emt 0:00:30]} 21. Qb1 {[%emt 0:01:00]} Kf7 {[%emt 0:04:30]} 22. Qb8 {[%emt 0:01:30]} Qe2 {[%emt 0:04:30]} 23. Qxa7+ {[%emt 0:02:30]} Kg6 {[%emt 0:01:30]} 24. Bf8 {[%emt 0:00:30]} Bd3 {[%emt 0:01:30]} 25. Qxg7+ {[%emt 0:00:00]} Kf5 {[%emt 0:01:30]} 1-0

[Event "Turkish Youth Championship 2024"]
[Site "Samsun"]
[Date "2024.05.21"]
[Round "6"]
[White "Ekinci, Berkay"]
[Black "Cagatay, Mehmet Kayra"]
[Result "0-1"]
[ECO "E20"]
[WhiteElo "1891"]
[BlackElo "1717"]
[Annotator "NA RC"]
[PlyCount "58"]
[EventDate "2024.05.18"]
[EventType "swiss"]
[EventCountry "TUR"]
[SourceTitle "playchess.com"]
[Source "ChessBase"]
[SourceQuality "1"]
[TimeControl "5400+30"]

1. d4 {[%emt 0:01:00]} Nf6 {[%emt 0:01:00]} 2. c4 {[%emt 0:00:30]} e6 {[%emt 0:00:00]} 3. Nc3 {[%emt 0:00:00]} Bb4 {[%emt 0:00:00]} 4. f3 {[%emt 0:01:00]} d6 {[%emt 0:06:30]} 5. Bg5 {[%emt 0:03:30]} Nbd7 {[%emt 0:02:30]} 6. e4 {[%emt 0:01:30]} e5 {[%emt 0:01:30]} 7. d5 {[%emt 0:01:30]} h6 {[%emt 0:01:30]} 8. Bh4 {[%emt 0:01:30]} Bxc3+ {[%emt 0:00:30]} 9. bxc3 {[%emt 0:00:30]} Nf8 {[%emt 0:00:30]} 10. Qd2 {[%emt 0:02:30]} Nxe4 {[%emt 0:05:30]} 11. Bxd8 {[%emt 0:09:30]} Nxd2 {[%emt 0:00:30]} 12. Kxd2 {[%emt 0:18:30]} Kxd8 {[%emt 0:00:30]} 13. Ne2 {[%emt 0:01:30]} Nd7 {[%emt 0:00:30]} 14. Ng3 {[%emt 0:01:30]} Nc5 {[%emt 0:00:00]} 15. Be2 {[%emt 0:02:30]} f5 {[%emt 0:05:00]} 16. Raf1 {[%emt 0:01:30]} Rf8 {[%emt 0:00:30]} 17. h4 {[%emt 0:01:30]} g6 {[%emt 0:03:30]} 18. f4 {[%emt 0:02:30]} exf4 {[%emt 0:00:30]} 19. Rxf4 {[%emt 0:00:00]} g5 {[%emt 0:00:00]} 20. hxg5 {[%emt 0:05:00]} hxg5 {[%emt 0:00:00]} 21. Rff1 {[%emt 0:00:30]} f4 {[%emt 0:01:30]} 22. Bd3 {[%emt 0:10:30]} Nxd3 {[%emt 0:03:30]} 23. Kxd3 {[%emt 0:00:30]} Re8 {[%emt 0:00:00]} 24. Ne4 {[%emt 0:02:30]} Bf5 {[%emt 0:01:00]} 25. Re1 {[%emt 0:00:30]} Kd7 {[%emt 0:00:30]} 26. Rh5 {[%emt 0:08:30]} Rxe4 {[%emt 0:00:30]} 27. Rxe4 {[%emt 0:03:30]} Re8 {[%emt 0:00:00]} 28. Rxg5 {[%emt 0:00:00]} Bxe4+ {[%emt 0:00:00]} 29. Kd4 {[%emt 0:00:00]} b6 {[%emt 0:00:30]} 0-1

[Event "Turkish Youth Championship 2024"]
[Site "Samsun"]
[Date "2024.05.21"]
[Round "6"]
[White "Cicek, Bilal Emre"]
[Black "Kesici, Eyup Can"]
[Result "1-0"]
[ECO "A22"]
[WhiteElo "1873"]
[BlackElo "1539"]
[Annotator "NA RC"]
[PlyCount "73"]
[EventDate "2024.05.18"]
[EventType "swiss"]
[EventCountry "TUR"]
[SourceTitle "playchess.com"]
[Source "ChessBase"]
[SourceQuality "1"]
[TimeControl "5400+30"]

1. c4 {[%emt 0:01:00]} e5 {[%emt 0:08:00]} 2. g3 {[%emt 0:00:30]} Nf6 {[%emt 0:00:00]} 3. Bg2 {[%emt 0:00:00]} Nc6 {[%emt 0:00:00]} 4. Nc3 {[%emt 0:00:00]} Bc5 {[%emt 0:00:30]} 5. a3 {[%emt 0:00:00]} a6 {[%emt 0:00:30]} 6. e3 {[%emt 0:00:00]} d6 {[%emt 0:01:30]} 7. Nge2 {[%emt 0:00:30]} O-O {[%emt 0:01:30]} 8. O-O {[%emt 0:00:00]} Ba7 {[%emt 0:00:30]} 9. d3 {[%emt 0:01:00]} Be6 {[%emt 0:01:30]} 10. Nd5 {[%emt 0:00:30]} Bxd5 {[%emt 0:01:30]} 11. cxd5 {[%emt 0:00:30]} Ne7 {[%emt 0:01:30]} 12. Nc3 {[%emt 0:01:30]} h6 {[%emt 0:05:30]} 13. b4 {[%emt 0:01:30]} Nh7 {[%emt 0:00:30]} 14. Kh1 {[%emt 0:14:30]} Ng6 {[%emt 0:02:30]} 15. d4 {[%emt 0:03:30]} f5 {[%emt 0:06:30]} 16. dxe5 {[%emt 0:02:30]} Nxe5 {[%emt 0:08:30]} 17. Ne2 {[%emt 0:01:30]} Nc4 {[%emt 0:03:30]} 18. Nf4 {[%emt 0:00:30]} Qf6 {[%emt 0:00:30]} 19. Ra2 {[%emt 0:01:30]} Ng5 {[%emt 0:10:30]} 20. Qc2 {[%emt 0:04:30]} b5 {[%emt 0:01:30]} 21. Re1 {[%emt 0:05:30]} Rae8 {[%emt 0:07:30]} 22. Bb2 {[%emt 0:08:30]} Nxb2 {[%emt 0:01:30]} 23. Qxb2 {[%emt 0:00:00]} Qxb2 {[%emt 0:03:30]} 24. Rxb2 {[%emt 0:00:00]} Rc8 {[%emt 0:04:30]} 25. Rc1 {[%emt 0:02:30]} Bb6 {[%emt 0:02:30]} 26. Rbc2 {[%emt 0:02:30]} Rfe8 {[%emt 0:00:30]} 27. h4 {[%emt 0:01:30]} Nf7 {[%emt 0:00:00]} 28. Bh3 {[%emt 0:00:00]} Ne5 {[%emt 0:07:00]} 29. Bxf5 {[%emt 0:00:00]} Ra8 {[%emt 0:00:30]} 30. Ne6 {[%emt 0:04:30]} Nc4 {[%emt 0:05:45]} 31. a4 {[%emt 0:05:30]} Re7 {[%emt 0:00:41]} 32. a5 {[%emt 0:00:30]} Ba7 {[%emt 0:00:00]} 33. Bd3 {[%emt 0:00:00]} Bxe3 {[%emt 0:02:22]} 34. fxe3 {[%emt 0:00:00]} Nxe3 {[%emt 0:00:08]} 35. Rxc7 {[%emt 0:01:30]} Nxd5 {[%emt 0:00:10]} 36. Rxe7 {[%emt 0:00:30]} Nxe7 {[%emt 0:00:09]} 37. Rc7 {[%emt 0:00:30]} 1-0

[Event "Turkish Youth Championship 2024"]
[Site "Samsun"]
[Date "2024.05.21"]
[Round "6"]
[White "Cetindag, Alper"]
[Black "Tirpan, Ceren"]
[Result "0-1"]
[ECO "B30"]
[WhiteElo "1839"]
[BlackElo "2004"]
[Annotator "RC"]
[PlyCount "56"]
[EventDate "2024.05.18"]
[EventType "swiss"]
[EventCountry "TUR"]
[SourceTitle "playchess.com"]
[Source "ChessBase"]
[SourceQuality "1"]
[TimeControl "5400+30"]

1. e4 {[%emt 0:01:00]} c5 {[%emt 0:01:00]} 2. Nf3 {[%emt 0:00:00]} Nc6 {[%emt 0:00:00]} 3. Bb5 {[%emt 0:00:00]} e6 {[%emt 0:00:00]} 4. O-O {[%emt 0:00:30]} Nge7 {[%emt 0:00:30]} 5. d4 {[%emt 0:00:00]} cxd4 {[%emt 0:03:30]} 6. Nxd4 {[%emt 0:00:00]} Nxd4 {[%emt 0:02:30]} 7. Qxd4 {[%emt 0:00:30]} a6 {[%emt 0:00:30]} 8. Be2 {[%emt 0:00:30]} Nc6 {[%emt 0:00:30]} 9. Qc3 {[%emt 0:00:30]} b5 {[%emt 0:09:30]} 10. a4 {[%emt 0:00:00]} b4 {[%emt 0:00:30]} 11. Qg3 {[%emt 0:00:00]} Qf6 {[%emt 0:11:30]} 12. Nd2 {[%emt 0:07:30]} Bc5 {[%emt 0:05:30]} 13. Nc4 {[%emt 0:06:30]} O-O {[%emt 0:07:30]} 14. Bd3 {[%emt 0:01:30]} Qg6 {[%emt 0:19:30]} 15. Qh4 {[%emt 0:03:30]} Be7 {[%emt 0:08:30]} 16. Qh3 {[%emt 0:02:30]} e5 {[%emt 0:04:30]} 17. Nb6 {[%emt 0:01:30]} Rb8 {[%emt 0:09:15]} 18. Nxc8 {[%emt 0:00:30]} Rbxc8 {[%emt 0:00:03]} 19. Bxa6 {[%emt 0:00:30]} Rc7 {[%emt 0:00:03]} 20. Be3 {[%emt 0:00:30]} Na5 {[%emt 0:03:08]} 21. Bb6 {[%emt 0:01:30]} Qxb6 {[%emt 0:00:23]} 22. Bd3 {[%emt 0:00:30]} Qe6 {[%emt 0:00:09]} 23. Qxe6 {[%emt 0:01:30]} fxe6 {[%emt 0:00:38]} 24. b3 {[%emt 0:00:30]} Bc5 {[%emt 0:00:00]} 25. g3 {[%emt 0:00:30]} Bd4 {[%emt 0:00:00]} 26. Rad1 {[%emt 0:00:00]} Nb7 {[%emt 0:00:00]} 27. Rde1 {[%emt 0:00:00]} Nc5 {[%emt 0:00:14]} 28. Bc4 {[%emt 0:00:30]} Nxa4 {[%emt 0:00:05]} 0-1

[Event "Turkish Youth Championship 2024"]
[Site "Samsun"]
[Date "2024.05.21"]
[Round "6"]
[White "Hamurcu, Mehmet"]
[Black "Atis, Hasan"]
[Result "1-0"]
[ECO "B30"]
[WhiteElo "1832"]
[BlackElo "2014"]
[Annotator "RC"]
[PlyCount "101"]
[EventDate "2024.05.18"]
[EventType "swiss"]
[EventCountry "TUR"]
[SourceTitle "playchess.com"]
[Source "ChessBase"]
[SourceQuality "1"]
[TimeControl "5400+30"]

1. e4 {[%emt 0:02:00]} c5 {[%emt 0:01:00]} 2. Nc3 {[%emt 0:00:00]} Nc6 {[%emt 0:00:30]} 3. Bb5 {[%emt 0:00:00]} Nd4 {[%emt 0:00:00]} 4. Nf3 {[%emt 0:00:30]} e6 {[%emt 0:00:00]} 5. O-O {[%emt 0:00:30]} a6 {[%emt 0:00:00]} 6. Bd3 {[%emt 0:00:30]} Nc6 {[%emt 0:00:00]} 7. Ne2 {[%emt 0:01:30]} Nf6 {[%emt 0:03:30]} 8. c3 {[%emt 0:00:30]} d5 {[%emt 0:00:30]} 9. exd5 {[%emt 0:01:30]} exd5 {[%emt 0:00:30]} 10. Ng3 {[%emt 0:01:30]} g6 {[%emt 0:03:30]} 11. Re1+ {[%emt 0:04:30]} Be7 {[%emt 0:00:00]} 12. Bc2 {[%emt 0:00:30]} d4 {[%emt 0:04:00]} 13. d3 {[%emt 0:06:30]} O-O {[%emt 0:00:30]} 14. Bb3 {[%emt 0:11:30]} Nd5 {[%emt 0:21:30]} 15. Bh6 {[%emt 0:34:30]} Re8 {[%emt 0:00:30]} 16. Rc1 {[%emt 0:00:00]} Be6 {[%emt 0:14:30]} 17. Ne4 {[%emt 0:02:00]} dxc3 {[%emt 0:04:30]} 18. bxc3 {[%emt 0:00:30]} Nc7 {[%emt 0:00:30]} 19. Neg5 {[%emt 0:13:37]} Bd5 {[%emt 0:00:30]} 20. h4 {[%emt 0:04:26]} Qd7 {[%emt 0:04:30]} 21. d4 {[%emt 0:06:35]} c4 {[%emt 0:08:30]} 22. Bc2 {[%emt 0:00:11]} f6 {[%emt 0:01:30]} 23. Nh3 {[%emt 0:03:35]} Ba3 {[%emt 0:01:30]} 24. Rb1 {[%emt 0:01:08]} Nb5 {[%emt 0:00:30]} 25. Bd2 {[%emt 0:02:38]} Bd6 {[%emt 0:09:30]} 26. Ba4 {[%emt 0:01:42]} Na3 {[%emt 0:01:37]} 27. Rb6 {[%emt 0:00:37]} Bc7 {[%emt 0:02:19]} 28. Rxb7 {[%emt 0:01:00]} Bh2+ {[%emt 0:00:30]} 29. Nxh2 {[%emt 0:00:00]} Qxb7 {[%emt 0:00:00]} 30. Ng4 {[%emt 0:00:00]} Kf7 {[%emt 0:01:57]} 31. Nf4 {[%emt 0:00:32]} Rxe1+ {[%emt 0:02:29]} 32. Qxe1 {[%emt 0:00:12]} Ne7 {[%emt 0:01:09]} 33. Ne3 {[%emt 0:01:42]} Be4 {[%emt 0:00:01]} 34. f3 {[%emt 0:00:00]} Bd3 {[%emt 0:01:23]} 35. Ng4 {[%emt 0:00:33]} Bf5 {[%emt 0:01:23]} 36. Nh6+ {[%emt 0:00:40]} Kg7 {[%emt 0:01:03]} 37. Ne6+ {[%emt 0:00:32]} Bxe6 {[%emt 0:01:49]} 38. Qxe6 {[%emt 0:00:02]} Rf8 {[%emt 0:01:35]} 39. Bd7 {[%emt 0:00:09]} Qb1+ {[%emt 0:03:50]} 40. Kh2 {[%emt 0:00:20]} Qb8+ {[%emt 0:03:30]} 41. g3 {[%emt 0:00:35]} Qd8 {[%emt 0:03:32]} 42. Bf4 {[%emt 0:00:28]} Nb5 {[%emt 0:00:36]} 43. a4 {[%emt 0:00:30]} Nxc3 {[%emt 0:00:00]} 44. Bc7 {[%emt 0:00:12]} Qxd7 {[%emt 0:01:39]} 45. Qxd7 {[%emt 0:00:30]} Ncd5 {[%emt 0:00:00]} 46. Bd6 {[%emt 0:00:04]} Kxh6 {[%emt 0:00:13]} 47. Bxe7 {[%emt 0:00:04]} Nxe7 {[%emt 0:00:37]} 48. Qxe7 {[%emt 0:00:30]} Rc8 {[%emt 0:00:00]} 49. Qe6 {[%emt 0:00:00]} Rc7 {[%emt 0:00:00]} 50. Qxf6 {[%emt 0:00:13]} Rd7 {[%emt 0:00:35]} 51. Qf8+ {[%emt 0:00:06]} 1-0

[Event "Turkish Youth Championship 2024"]
[Site "Samsun"]
[Date "2024.05.21"]
[Round "6"]
[White "Zeyrek, Ayaz"]
[Black "Uslu, Tarik"]
[Result "1-0"]
[ECO "D77"]
[WhiteElo "1750"]
[BlackElo "1483"]
[Annotator "NA RC"]
[PlyCount "63"]
[EventDate "2024.05.18"]
[EventType "swiss"]
[EventCountry "TUR"]
[SourceTitle "playchess.com"]
[Source "ChessBase"]
[SourceQuality "1"]
[TimeControl "5400+30"]

1. d4 {[%emt 0:01:00]} d5 {[%emt 0:01:00]} 2. Nf3 {[%emt 0:00:00]} Nf6 {[%emt 0:00:30]} 3. c4 {[%emt 0:00:00]} e6 {[%emt 0:00:00]} 4. g3 {[%emt 0:00:00]} g6 {[%emt 0:01:00]} 5. Bg2 {[%emt 0:00:00]} Bg7 {[%emt 0:00:30]} 6. O-O {[%emt 0:00:30]} O-O {[%emt 0:00:00]} 7. Qc2 {[%emt 0:00:30]} Nbd7 {[%emt 0:01:00]} 8. Nc3 {[%emt 0:00:30]} dxc4 {[%emt 0:02:30]} 9. e3 {[%emt 0:00:30]} c6 {[%emt 0:01:30]} 10. Nd2 {[%emt 0:02:30]} Nb6 {[%emt 0:00:30]} 11. b3 {[%emt 0:01:30]} cxb3 {[%emt 0:02:30]} 12. axb3 {[%emt 0:00:30]} Nfd5 {[%emt 0:01:30]} 13. Ba3 {[%emt 0:00:30]} Re8 {[%emt 0:00:30]} 14. Nce4 {[%emt 0:01:30]} e5 {[%emt 0:02:30]} 15. Nd6 {[%emt 0:10:30]} Re6 {[%emt 0:01:30]} 16. Nxc8 {[%emt 0:00:30]} Rxc8 {[%emt 0:03:30]} 17. e4 {[%emt 0:00:30]} Ne7 {[%emt 0:02:30]} 18. Bh3 {[%emt 0:02:30]} f5 {[%emt 0:05:30]} 19. Bxe7 {[%emt 0:00:30]} Rxe7 {[%emt 0:00:30]} 20. exf5 {[%emt 0:01:30]} exd4 {[%emt 0:03:30]} 21. Qd3 {[%emt 0:03:30]} Ra8 {[%emt 0:11:30]} 22. fxg6 {[%emt 0:00:30]} hxg6 {[%emt 0:04:30]} 23. Qxg6 {[%emt 0:00:30]} Qe8 {[%emt 0:08:30]} 24. Qxe8+ {[%emt 0:01:30]} Rexe8 {[%emt 0:01:30]} 25. Rfe1 {[%emt 0:00:30]} Kf7 {[%emt 0:04:30]} 26. Ne4 {[%emt 0:01:30]} Rh8 {[%emt 0:08:30]} 27. Nd6+ {[%emt 0:02:30]} Kf6 {[%emt 0:01:30]} 28. Re6+ {[%emt 0:00:30]} Kg5 {[%emt 0:00:30]} 29. f4+ {[%emt 0:00:30]} Kh5 {[%emt 0:00:00]} 30. Bf1 {[%emt 0:00:30]} Kg4 {[%emt 0:01:00]} 31. Be2+ {[%emt 0:01:30]} Kh3 {[%emt 0:00:30]} 32. Rg6 {[%emt 0:00:00]} 1-0

[Event "Turkish Youth Championship 2024"]
[Site "Samsun"]
[Date "2024.05.21"]
[Round "6"]
[White "Kalyoncu, Beren"]
[Black "Selvi, Kaan"]
[Result "1-0"]
[ECO "B22"]
[WhiteElo "1737"]
[BlackElo "1881"]
[Annotator "NA RC"]
[PlyCount "87"]
[EventDate "2024.05.18"]
[EventType "swiss"]
[EventCountry "TUR"]
[SourceTitle "playchess.com"]
[Source "ChessBase"]
[SourceQuality "1"]
[TimeControl "5400+30"]

1. e4 {[%emt 0:01:00]} c5 {[%emt 0:01:00]} 2. c3 {[%emt 0:00:00]} d5 {[%emt 0:00:30]} 3. exd5 {[%emt 0:00:00]} Qxd5 {[%emt 0:00:00]} 4. d4 {[%emt 0:00:30]} Nc6 {[%emt 0:00:00]} 5. Nf3 {[%emt 0:00:00]} cxd4 {[%emt 0:00:00]} 6. cxd4 {[%emt 0:00:00]} e5 {[%emt 0:00:00]} 7. Nc3 {[%emt 0:00:30]} Bb4 {[%emt 0:00:30]} 8. Be2 {[%emt 0:00:30]} exd4 {[%emt 0:11:30]} 9. O-O {[%emt 0:00:30]} Bxc3 {[%emt 0:00:00]} 10. bxc3 {[%emt 0:00:00]} Nge7 {[%emt 0:00:00]} 11. Nxd4 {[%emt 0:01:00]} Nxd4 {[%emt 0:02:30]} 12. cxd4 {[%emt 0:00:30]} O-O {[%emt 0:01:30]} 13. Bf3 {[%emt 0:03:30]} Qa5 {[%emt 0:04:30]} 14. Bd2 {[%emt 0:04:30]} Qd8 {[%emt 0:02:30]} 15. Bb4 {[%emt 0:01:30]} Re8 {[%emt 0:01:30]} 16. d5 {[%emt 0:00:30]} a5 {[%emt 0:06:30]} 17. Ba3 {[%emt 0:02:30]} Nf5 {[%emt 0:04:30]} 18. Re1 {[%emt 0:05:30]} Rxe1+ {[%emt 0:13:30]} 19. Qxe1 {[%emt 0:00:30]} Nd4 {[%emt 0:00:30]} 20. Qe4 {[%emt 0:01:30]} Nxf3+ {[%emt 0:02:30]} 21. Qxf3 {[%emt 0:00:30]} Qf6 {[%emt 0:06:30]} 22. Qxf6 {[%emt 0:01:30]} gxf6 {[%emt 0:00:30]} 23. Rb1 {[%emt 0:00:00]} a4 {[%emt 0:08:30]} 24. Rb5 {[%emt 0:02:00]} Rb8 {[%emt 0:05:30]} 25. Rb6 {[%emt 0:01:30]} f5 {[%emt 0:05:30]} 26. Rd6 {[%emt 0:00:00]} Be6 {[%emt 0:07:37]} 27. dxe6 {[%emt 0:01:00]} fxe6 {[%emt 0:00:00]} 28. g3 {[%emt 0:01:30]} b5 {[%emt 0:01:03]} 29. Bb4 {[%emt 0:00:30]} Kf7 {[%emt 0:00:59]} 30. Rd7+ {[%emt 0:00:30]} Kg6 {[%emt 0:00:16]} 31. a3 {[%emt 0:00:30]} h5 {[%emt 0:00:18]} 32. Kg2 {[%emt 0:01:30]} Kf6 {[%emt 0:02:47]} 33. Kf3 {[%emt 0:00:30]} Kg6 {[%emt 0:01:19]} 34. Kf4 {[%emt 0:00:30]} Rc8 {[%emt 0:00:16]} 35. Rb7 {[%emt 0:00:30]} Rc2 {[%emt 0:01:32]} 36. Kf3 {[%emt 0:00:30]} h4 {[%emt 0:00:59]} 37. Rxb5 {[%emt 0:00:30]} h3 {[%emt 0:00:59]} 38. Rb6 {[%emt 0:01:30]} Kf6 {[%emt 0:00:52]} 39. Rb7 {[%emt 0:00:30]} Kg6 {[%emt 0:02:20]} 40. Ra7 {[%emt 0:01:30]} Rc1 {[%emt 0:02:24]} 41. Rxa4 {[%emt 0:00:30]} Rh1 {[%emt 0:00:22]} 42. Ra6 {[%emt 0:00:30]} Rxh2 {[%emt 0:01:01]} 43. Rxe6+ {[%emt 0:00:00]} Kh7 {[%emt 0:00:10]} 44. Re1 {[%emt 0:01:00]} 1-0

[Event "Turkish Youth Championship 2024"]
[Site "Samsun"]
[Date "2024.05.21"]
[Round "6"]
[White "Toptal, Uygar Altan"]
[Black "Kilic, Nurullah"]
[Result "1-0"]
[ECO "B36"]
[WhiteElo "1679"]
[BlackElo "1893"]
[Annotator "NA RC"]
[PlyCount "59"]
[EventDate "2024.05.18"]
[EventType "swiss"]
[EventCountry "TUR"]
[SourceTitle "playchess.com"]
[Source "ChessBase"]
[SourceQuality "1"]
[TimeControl "5400+30"]

1. e4 {[%emt 0:01:00]} c5 {[%emt 0:02:00]} 2. Nf3 {[%emt 0:00:30]} Nc6 {[%emt 0:00:00]} 3. d4 {[%emt 0:00:00]} cxd4 {[%emt 0:00:00]} 4. Nxd4 {[%emt 0:00:00]} g6 {[%emt 0:00:30]} 5. c4 {[%emt 0:00:30]} Nf6 {[%emt 0:07:30]} 6. Nc3 {[%emt 0:00:30]} Nxd4 {[%emt 0:00:30]} 7. Qxd4 {[%emt 0:00:30]} d6 {[%emt 0:00:00]} 8. Be3 {[%emt 0:00:30]} Bg7 {[%emt 0:00:00]} 9. Be2 {[%emt 0:01:30]} O-O {[%emt 0:00:30]} 10. Qd3 {[%emt 0:02:30]} Be6 {[%emt 0:02:30]} 11. Rc1 {[%emt 0:01:30]} Qa5 {[%emt 0:07:30]} 12. O-O {[%emt 0:08:30]} Rac8 {[%emt 0:07:30]} 13. b3 {[%emt 0:01:30]} a6 {[%emt 0:01:30]} 14. f4 {[%emt 0:18:30]} Bd7 {[%emt 0:15:30]} 15. b4 {[%emt 0:13:30]} Qd8 {[%emt 0:09:30]} 16. Rfd1 {[%emt 0:04:30]} Ng4 {[%emt 0:11:30]} 17. Nd5 $14 {[%emt 0:06:30]} Nxe3 {[%emt 0:06:30]} 18. Qxe3 {[%emt 0:00:30]} Bc6 {[%emt 0:00:30]} 19. Nb6 {[%emt 0:05:30]} Rb8 {[%emt 0:01:30]} 20. e5 {[%emt 0:00:30]} Qe8 {[%emt 0:01:30]} 21. c5 {[%emt 0:13:39]} dxe5 {[%emt 0:04:36]} 22. fxe5 {[%emt 0:02:05]} f5 {[%emt 0:00:24]} 23. Bc4+ {[%emt 0:02:49]} Kh8 {[%emt 0:00:30]} 24. g3 {[%emt 0:02:28]} e6 {[%emt 0:00:30]} 25. Rd6 {[%emt 0:00:29]} f4 {[%emt 0:00:57]} 26. gxf4 {[%emt 0:00:30]} g5 {[%emt 0:00:20]} 27. Bxe6 {[%emt 0:02:17]} gxf4 {[%emt 0:00:29]} 28. Qh3 {[%emt 0:01:11]} Bxe5 {[%emt 0:01:18]} 29. Re1 {[%emt 0:00:36]} Bxd6 {[%emt 0:07:04]} 30. Qc3+ {[%emt 0:00:25]} 1-0